[Event "*** SCC Grand Prix: Titled Tuesday Blitz"]
[Site "Chess.com"]
[Date "2020.09.08"]
[Round "3"]
[White "sasko1234"]
[Black "nrvisakh"]
[Result "1/2-1/2"]
[WhiteElo "2415"]
[BlackElo "2737"]
[TimeControl "180+1"]
[EndTime "10:29:48 PDT"]
[Termination "Game drawn by repetition"]

1. b3 {[%clk 0:03:00.9]} 1... e5 {[%clk 0:02:55]} 2. Bb2 {[%clk 0:02:53.3]} 2...
Nc6 {[%clk 0:02:55.2]} 3. e3 {[%clk 0:02:52.8]} 3... Nf6 {[%clk 0:02:54.9]} 4.
Nf3 {[%clk 0:02:52.7]} 4... e4 {[%clk 0:02:42.8]} 5. Nd4 {[%clk 0:02:52.3]} 5...
d5 {[%clk 0:02:35.9]} 6. c4 {[%clk 0:02:49.7]} 6... Nxd4 {[%clk 0:01:48.7]} 7.
Bxd4 {[%clk 0:02:48.9]} 7... dxc4 {[%clk 0:01:49.1]} 8. Bxc4 {[%clk 0:02:38.6]}
8... Bd6 {[%clk 0:01:47.7]} 9. Nc3 {[%clk 0:02:25.6]} 9... O-O {[%clk
0:01:36.1]} 10. Bxf6 {[%clk 0:01:59.1]} 10... Qxf6 {[%clk 0:01:37]} 11. Nxe4
{[%clk 0:01:58.9]} 11... Qg6 {[%clk 0:01:37.5]} 12. Ng3 {[%clk 0:01:49.1]} 12...
Kh8 {[%clk 0:01:15.1]} 13. O-O {[%clk 0:01:46.7]} 13... Bg4 {[%clk 0:01:10]} 14.
Be2 {[%clk 0:01:42.7]} 14... Bd7 {[%clk 0:00:55]} 15. d4 {[%clk 0:01:23.1]}
15... a5 {[%clk 0:00:53.5]} 16. Bd3 {[%clk 0:01:21.7]} 16... f5 {[%clk
0:00:52.9]} 17. Qc2 {[%clk 0:01:05.9]} 17... Qh6 {[%clk 0:00:43.5]} 18. f4
{[%clk 0:00:57.5]} 18... g6 {[%clk 0:00:41.2]} 19. Rae1 {[%clk 0:00:51.2]} 19...
Rfe8 {[%clk 0:00:38.9]} 20. e4 {[%clk 0:00:40.1]} 20... fxe4 {[%clk 0:00:37.4]}
21. Nxe4 {[%clk 0:00:36]} 21... Bxf4 {[%clk 0:00:36.5]} 22. g3 {[%clk
0:00:36.4]} 22... Be3+ {[%clk 0:00:36.1]} 23. Kg2 {[%clk 0:00:28.8]} 23... Bc6
{[%clk 0:00:35.9]} 24. d5 {[%clk 0:00:18.4]} 24... Bxd5 {[%clk 0:00:31.6]} 25.
Qc3+ {[%clk 0:00:18.1]} 25... Kg8 {[%clk 0:00:30.7]} 26. Rf3 {[%clk 0:00:17.9]}
26... Bxe4 {[%clk 0:00:20.4]} 27. Bxe4 {[%clk 0:00:18]} 27... Rxe4 {[%clk
0:00:19.3]} 28. Rfxe3 {[%clk 0:00:18.2]} 28... Rxe3 {[%clk 0:00:19.6]} 29. Rxe3
{[%clk 0:00:18.5]} 29... Qg7 {[%clk 0:00:17.8]} 30. Qc4+ {[%clk 0:00:18.3]}
30... Kh8 {[%clk 0:00:17.3]} 31. Qd5 {[%clk 0:00:17.3]} 31... c6 {[%clk
0:00:16.9]} 32. Qd2 {[%clk 0:00:16.7]} 32... a4 {[%clk 0:00:14.8]} 33. Rd3
{[%clk 0:00:14.6]} 33... Rf8 {[%clk 0:00:10.6]} 34. Rd8 {[%clk 0:00:13.2]} 34...
axb3 {[%clk 0:00:06.6]} 35. axb3 {[%clk 0:00:12.6]} 35... Qf6 {[%clk 0:00:03.9]}
36. Rxf8+ {[%clk 0:00:12]} 36... Qxf8 {[%clk 0:00:04.8]} 37. Qd7 {[%clk
0:00:12.3]} 37... Qf6 {[%clk 0:00:02]} 38. Qxb7 {[%clk 0:00:11.4]} 38... Qb2+
{[%clk 0:00:01.5]} 39. Kh3 {[%clk 0:00:11.6]} 39... Qf6 {[%clk 0:00:02.4]} 40.
Kg2 {[%clk 0:00:11.4]} 40... Qb2+ {[%clk 0:00:02.2]} 41. Kh3 {[%clk 0:00:11.7]}
41... Qf6 {[%clk 0:00:03.1]} 42. Kg2 {[%clk 0:00:11.9]} 1/2-1/2

[Event "*** SCC Grand Prix: Titled Tuesday Blitz"]
[Site "Chess.com"]
[Date "2020.09.08"]
[Round "3"]
[White "belisarius64"]
[Black "Oleksandr_Bortnyk"]
[Result "0-1"]
[WhiteElo "2673"]
[BlackElo "2934"]
[TimeControl "180+1"]
[EndTime "10:29:49 PDT"]
[Termination "Oleksandr_Bortnyk won by resignation"]

1. e4 {[%clk 0:03:00.9]} 1... Nf6 {[%clk 0:02:59.5]} 2. e5 {[%clk 0:03:01.1]}
2... Nd5 {[%clk 0:02:59.4]} 3. d4 {[%clk 0:03:01.7]} 3... d6 {[%clk 0:02:59.7]}
4. c4 {[%clk 0:03:02.1]} 4... Nb6 {[%clk 0:03:00.1]} 5. exd6 {[%clk 0:03:02.4]}
5... exd6 {[%clk 0:03:01]} 6. Nc3 {[%clk 0:02:58.4]} 6... Be7 {[%clk 0:03:01.6]}
7. Bd3 {[%clk 0:02:56.8]} 7... Nc6 {[%clk 0:02:59.8]} 8. Nge2 {[%clk 0:02:55.1]}
8... Bg4 {[%clk 0:02:59.8]} 9. Be3 {[%clk 0:02:54]} 9... O-O {[%clk 0:03:00]}
10. O-O {[%clk 0:02:52.2]} 10... Bg5 {[%clk 0:02:58.8]} 11. Qd2 {[%clk
0:02:32.5]} 11... Bxe3 {[%clk 0:02:58.1]} 12. fxe3 {[%clk 0:02:28.2]} 12... Qg5
{[%clk 0:02:58]} 13. Ne4 {[%clk 0:02:20.8]} 13... Qh6 {[%clk 0:02:58.1]} 14. Nf4
{[%clk 0:02:15]} 14... Rae8 {[%clk 0:02:53.2]} 15. Ng3 {[%clk 0:02:09.3]} 15...
g6 {[%clk 0:02:09.2]} 16. b3 {[%clk 0:01:58.6]} 16... Bc8 {[%clk 0:01:57.7]} 17.
Ne4 {[%clk 0:01:44.4]} 17... f5 {[%clk 0:01:53.4]} 18. Nc3 {[%clk 0:01:44.5]}
18... Qg7 {[%clk 0:01:51.8]} 19. c5 {[%clk 0:01:37]} 19... dxc5 {[%clk
0:01:45.3]} 20. dxc5 {[%clk 0:01:37.9]} 20... Na8 {[%clk 0:01:32.4]} 21. Rad1
{[%clk 0:01:21.4]} 21... Ne5 {[%clk 0:01:29.7]} 22. Be2 {[%clk 0:01:13]} 22...
c6 {[%clk 0:01:28.3]} 23. e4 {[%clk 0:01:05.6]} 23... Nc7 {[%clk 0:01:26.7]} 24.
Kh1 {[%clk 0:01:00.3]} 24... Kh8 {[%clk 0:01:08.6]} 25. Qc2 {[%clk 0:00:42.1]}
25... fxe4 {[%clk 0:01:05.8]} 26. Nxe4 {[%clk 0:00:16.5]} 26... Bf5 {[%clk
0:01:05.8]} 27. Rde1 {[%clk 0:00:09.1]} 27... Nd5 {[%clk 0:01:05.1]} 28. Nxd5
{[%clk 0:00:07.7]} 28... cxd5 {[%clk 0:01:06]} 29. Rxf5 {[%clk 0:00:08.3]} 29...
gxf5 {[%clk 0:00:57.1]} 30. Nd6 {[%clk 0:00:09.2]} 30... Ng4 {[%clk 0:00:41.3]}
31. Nxe8 {[%clk 0:00:07.7]} 31... Nf2+ {[%clk 0:00:41.6]} 32. Kg1 {[%clk
0:00:07.4]} 32... Qd4 {[%clk 0:00:42.5]} 33. Kf1 {[%clk 0:00:04.1]} 33... Rxe8
{[%clk 0:00:31.1]} 34. Bf3 {[%clk 0:00:04.3]} 34... Ne4 {[%clk 0:00:09.9]} 35.
Rd1 {[%clk 0:00:03.4]} 35... Qe3 {[%clk 0:00:05.7]} 36. Qe2 {[%clk 0:00:03.2]}
36... Qxc5 {[%clk 0:00:04.4]} 37. g3 {[%clk 0:00:01.7]} 37... Nxg3+ {[%clk
0:00:04.2]} 38. hxg3 {[%clk 0:00:01.3]} 38... Rxe2 {[%clk 0:00:05.1]} 39. Bxe2
{[%clk 0:00:02]} 39... d4 {[%clk 0:00:05.5]} 40. Bd3 {[%clk 0:00:01.8]} 40...
Kg7 {[%clk 0:00:05.8]} 41. Ke2 {[%clk 0:00:02.2]} 41... Qd5 {[%clk 0:00:06.1]}
42. Rf1 {[%clk 0:00:02.3]} 42... Qg2+ {[%clk 0:00:06.7]} 43. Rf2 {[%clk
0:00:03]} 43... Qxg3 {[%clk 0:00:07.3]} 44. Rxf5 {[%clk 0:00:03.9]} 44... Qe3+
{[%clk 0:00:07.6]} 0-1

[Event "*** SCC Grand Prix: Titled Tuesday Blitz"]
[Site "Chess.com"]
[Date "2020.09.08"]
[Round "3"]
[White "NMZanette"]
[Black "PlotnikovPavel"]
[Result "0-1"]
[WhiteElo "2196"]
[BlackElo "2485"]
[TimeControl "180+1"]
[EndTime "10:29:49 PDT"]
[Termination "PlotnikovPavel won by resignation"]

1. e4 {[%clk 0:03:00.9]} 1... e6 {[%clk 0:02:59.9]} 2. d4 {[%clk 0:03:00.6]}
2... d5 {[%clk 0:02:59.8]} 3. Nd2 {[%clk 0:03:00.2]} 3... Be7 {[%clk 0:02:57.2]}
4. Ngf3 {[%clk 0:02:59]} 4... dxe4 {[%clk 0:02:57.3]} 5. Nxe4 {[%clk 0:02:58.8]}
5... Nf6 {[%clk 0:02:58.2]} 6. Nxf6+ {[%clk 0:02:57.4]} 6... Bxf6 {[%clk
0:02:59.1]} 7. Bd3 {[%clk 0:02:57.2]} 7... O-O {[%clk 0:02:59.4]} 8. O-O {[%clk
0:02:55.7]} 8... b6 {[%clk 0:02:59.1]} 9. Be4 {[%clk 0:02:53.8]} 9... c6 {[%clk
0:02:58.5]} 10. c3 {[%clk 0:02:52.8]} 10... Bb7 {[%clk 0:02:58.3]} 11. Re1
{[%clk 0:02:51.6]} 11... Qc7 {[%clk 0:02:58.3]} 12. Bg5 {[%clk 0:02:51.4]} 12...
Nd7 {[%clk 0:02:56.5]} 13. Qc2 {[%clk 0:02:50.9]} 13... h6 {[%clk 0:02:55.4]}
14. Be3 {[%clk 0:02:42.6]} 14... c5 {[%clk 0:02:53.1]} 15. dxc5 {[%clk
0:02:39.3]} 15... Bxe4 {[%clk 0:02:49.8]} 16. Qxe4 {[%clk 0:02:38.1]} 16... Nxc5
{[%clk 0:02:50.3]} 17. Qg4 {[%clk 0:02:35.9]} 17... Kh8 {[%clk 0:02:48.9]} 18.
Rad1 {[%clk 0:02:33.2]} 18... Rad8 {[%clk 0:02:48.2]} 19. Nd4 {[%clk 0:02:30.1]}
19... e5 {[%clk 0:02:25]} 20. Nf5 {[%clk 0:02:28.2]} 20... Nd3 {[%clk
0:02:25.1]} 21. Qh5 {[%clk 0:01:56.7]} 21... Nxe1 {[%clk 0:02:08.1]} 22. Rxe1
{[%clk 0:01:54.1]} 22... Rd6 {[%clk 0:01:22.9]} 23. Nxh6 {[%clk 0:01:31.2]}
23... gxh6 {[%clk 0:01:17.1]} 24. Bxh6 {[%clk 0:01:24.7]} 24... Bg7 {[%clk
0:01:05]} 25. Bxg7+ {[%clk 0:00:59.9]} 25... Kxg7 {[%clk 0:01:04.7]} 26. Qxe5+
{[%clk 0:01:00.5]} 26... Kg8 {[%clk 0:00:59.8]} 27. Qg3+ {[%clk 0:00:57.8]}
27... Kh7 {[%clk 0:00:56]} 28. h3 {[%clk 0:00:44.5]} 28... Rg8 {[%clk
0:00:52.4]} 29. Qf4 {[%clk 0:00:36.6]} 29... Qb7 {[%clk 0:00:46.4]} 30. Qf5+
{[%clk 0:00:32.2]} 30... Rdg6 {[%clk 0:00:45.6]} 31. Re4 {[%clk 0:00:30.9]}
31... Kg7 {[%clk 0:00:40.8]} 32. g4 {[%clk 0:00:24.8]} 32... Qc7 {[%clk
0:00:34.7]} 33. h4 {[%clk 0:00:19]} 33... Kf8 {[%clk 0:00:32.1]} 34. h5 {[%clk
0:00:17.5]} 34... Rd6 {[%clk 0:00:29.4]} 35. Kg2 {[%clk 0:00:13.3]} 35... Qd7
{[%clk 0:00:29.3]} 36. Qf3 {[%clk 0:00:09.3]} 36... Re6 {[%clk 0:00:27.9]} 37.
Rf4 {[%clk 0:00:09.3]} 37... Re7 {[%clk 0:00:21]} 38. h6 {[%clk 0:00:09.2]}
38... Rh8 {[%clk 0:00:20]} 39. Qa8+ {[%clk 0:00:08.6]} 39... Qe8 {[%clk
0:00:18.7]} 40. Qf3 {[%clk 0:00:07.4]} 40... Rxh6 {[%clk 0:00:18.4]} 41. g5
{[%clk 0:00:08]} 41... Rg6 {[%clk 0:00:18.3]} 42. Rf5 {[%clk 0:00:08]} 42... Re5
{[%clk 0:00:17.4]} 43. Rxe5 {[%clk 0:00:05.7]} 43... Qxe5 {[%clk 0:00:17.1]} 44.
Qa8+ {[%clk 0:00:06.4]} 44... Kg7 {[%clk 0:00:16.9]} 45. f4 {[%clk 0:00:05.9]}
45... Qxf4 {[%clk 0:00:16.4]} 0-1

[Event "*** SCC Grand Prix: Titled Tuesday Blitz"]
[Site "Chess.com"]
[Date "2020.09.08"]
[Round "3"]
[White "Mikhail_Golubev"]
[Black "Infernal_XaM"]
[Result "0-1"]
[WhiteElo "2610"]
[BlackElo "2905"]
[TimeControl "180+1"]
[EndTime "10:29:51 PDT"]
[Termination "Infernal_XaM won by resignation"]

1. e4 {[%clk 0:02:57.3]} 1... h6 {[%clk 0:02:58.6]} 2. Nc3 {[%clk 0:02:52.3]}
2... e6 {[%clk 0:02:56.9]} 3. Nf3 {[%clk 0:02:47.1]} 3... d5 {[%clk 0:02:56.4]}
4. exd5 {[%clk 0:02:36.8]} 4... exd5 {[%clk 0:02:55.6]} 5. d4 {[%clk 0:02:37.4]}
5... c6 {[%clk 0:02:53.8]} 6. Bf4 {[%clk 0:02:31.5]} 6... Bb4 {[%clk 0:02:39.3]}
7. Bd3 {[%clk 0:02:28.8]} 7... Ne7 {[%clk 0:02:33.8]} 8. O-O {[%clk 0:02:28]}
8... O-O {[%clk 0:02:32.8]} 9. Ne2 {[%clk 0:02:24.3]} 9... Nd7 {[%clk
0:02:29.7]} 10. Ng3 {[%clk 0:02:19.5]} 10... Nf6 {[%clk 0:02:29.3]} 11. c3
{[%clk 0:02:14]} 11... Bd6 {[%clk 0:02:28.7]} 12. Bxd6 {[%clk 0:02:09]} 12...
Qxd6 {[%clk 0:02:28.4]} 13. Re1 {[%clk 0:02:09.3]} 13... Bg4 {[%clk 0:02:18.4]}
14. h3 {[%clk 0:02:08.5]} 14... Bxf3 {[%clk 0:02:18.2]} 15. Qxf3 {[%clk
0:02:08.5]} 15... Rfe8 {[%clk 0:02:18.6]} 16. Re5 {[%clk 0:02:00.7]} 16... Nd7
{[%clk 0:02:12.1]} 17. Re2 {[%clk 0:01:52]} 17... Ng6 {[%clk 0:02:11.9]} 18. Nf5
{[%clk 0:01:43.2]} 18... Qf6 {[%clk 0:01:45.9]} 19. Rae1 {[%clk 0:01:41.5]}
19... Rxe2 {[%clk 0:01:41.7]} 20. Rxe2 {[%clk 0:01:38.9]} 20... Qg5 {[%clk
0:01:30.5]} 21. g3 {[%clk 0:01:34.5]} 21... Qf6 {[%clk 0:01:25.2]} 22. Kg2
{[%clk 0:01:29.9]} 22... Rd8 {[%clk 0:01:18.8]} 23. h4 {[%clk 0:01:28.5]} 23...
Ngf8 {[%clk 0:01:04.1]} 24. Ne7+ {[%clk 0:01:11.9]} 24... Kh8 {[%clk 0:01:03.9]}
25. Qxf6 {[%clk 0:01:11.3]} 25... Nxf6 {[%clk 0:01:04]} 26. Nf5 {[%clk
0:01:10.8]} 26... Ne6 {[%clk 0:01:04]} 27. f4 {[%clk 0:01:03.5]} 27... Kg8
{[%clk 0:01:00.1]} 28. Kf3 {[%clk 0:01:02.6]} 28... h5 {[%clk 0:00:59.6]} 29.
Ne3 {[%clk 0:00:42.8]} 29... Kf8 {[%clk 0:00:58]} 30. f5 {[%clk 0:00:36.6]}
30... Nc7 {[%clk 0:00:58.1]} 31. Ng2 {[%clk 0:00:37.1]} 31... Nce8 {[%clk
0:00:57.1]} 32. Nf4 {[%clk 0:00:35.8]} 32... Nd6 {[%clk 0:00:57.3]} 33. Re1
{[%clk 0:00:32.9]} 33... b6 {[%clk 0:00:56.5]} 34. Re2 {[%clk 0:00:32.2]} 34...
a5 {[%clk 0:00:49.7]} 35. a4 {[%clk 0:00:27.2]} 35... Re8 {[%clk 0:00:38.4]} 36.
Re5 {[%clk 0:00:23.6]} 36... Rb8 {[%clk 0:00:34.2]} 37. Re2 {[%clk 0:00:19.4]}
37... Rd8 {[%clk 0:00:29.9]} 38. Re5 {[%clk 0:00:15.5]} 38... Nc8 {[%clk
0:00:29.4]} 39. Re2 {[%clk 0:00:14.7]} 39... c5 {[%clk 0:00:27.5]} 40. dxc5
{[%clk 0:00:12.3]} 40... bxc5 {[%clk 0:00:27.3]} 41. Bb5 {[%clk 0:00:11]} 41...
Nd6 {[%clk 0:00:25.5]} 42. Bc6 {[%clk 0:00:09.3]} 42... Nxf5 {[%clk 0:00:23.2]}
43. Re5 {[%clk 0:00:07.5]} 43... Ne7 {[%clk 0:00:23.1]} 44. Bb5 {[%clk
0:00:06.6]} 44... g6 {[%clk 0:00:23.3]} 45. Re2 {[%clk 0:00:05.5]} 45... Rd6
{[%clk 0:00:21.9]} 46. Re1 {[%clk 0:00:05.5]} 46... Nf5 {[%clk 0:00:21.4]} 47.
Re2 {[%clk 0:00:05.2]} 47... d4 {[%clk 0:00:21.3]} 48. cxd4 {[%clk 0:00:04.8]}
48... Nxd4+ {[%clk 0:00:20.9]} 0-1

[Event "*** SCC Grand Prix: Titled Tuesday Blitz"]
[Site "Chess.com"]
[Date "2020.09.08"]
[Round "3"]
[White "geordie_derraugh"]
[Black "Rozum_Ivan"]
[Result "0-1"]
[WhiteElo "2414"]
[BlackElo "2707"]
[TimeControl "180+1"]
[EndTime "10:29:51 PDT"]
[Termination "Rozum_Ivan won on time"]

1. e4 {[%clk 0:03:00.9]} 1... g6 {[%clk 0:02:58.5]} 2. d4 {[%clk 0:03:00.5]}
2... Bg7 {[%clk 0:02:59.4]} 3. Nf3 {[%clk 0:02:59.9]} 3... d6 {[%clk 0:02:58.9]}
4. h3 {[%clk 0:02:58.8]} 4... Nd7 {[%clk 0:02:58]} 5. Be3 {[%clk 0:02:58.4]}
5... Ngf6 {[%clk 0:02:58.1]} 6. Nc3 {[%clk 0:02:56.7]} 6... O-O {[%clk
0:02:58.1]} 7. Be2 {[%clk 0:02:54.5]} 7... e5 {[%clk 0:02:58.3]} 8. O-O {[%clk
0:02:53.1]} 8... exd4 {[%clk 0:02:57.2]} 9. Bxd4 {[%clk 0:02:43]} 9... Re8
{[%clk 0:02:57]} 10. Bd3 {[%clk 0:02:32.8]} 10... b6 {[%clk 0:02:54.7]} 11. Re1
{[%clk 0:02:27.7]} 11... Bb7 {[%clk 0:02:53.8]} 12. Qd2 {[%clk 0:02:10.6]} 12...
Nc5 {[%clk 0:02:39.8]} 13. Bxc5 {[%clk 0:02:03.2]} 13... bxc5 {[%clk 0:02:35.6]}
14. Qf4 {[%clk 0:01:48.6]} 14... Nd7 {[%clk 0:02:33.1]} 15. Bc4 {[%clk
0:01:40.4]} 15... Qf6 {[%clk 0:02:31.8]} 16. Qg3 {[%clk 0:01:14.9]} 16... Ne5
{[%clk 0:02:29.9]} 17. Nxe5 {[%clk 0:00:57.3]} 17... Qxe5 {[%clk 0:02:30.8]} 18.
Qf3 {[%clk 0:00:51.4]} 18... Qf6 {[%clk 0:02:28.2]} 19. Qxf6 {[%clk 0:00:42.1]}
19... Bxf6 {[%clk 0:02:29.1]} 20. Nd5 {[%clk 0:00:42.5]} 20... Bxd5 {[%clk
0:02:23.6]} 21. Bxd5 {[%clk 0:00:42.9]} 21... Rab8 {[%clk 0:02:23.6]} 22. Rab1
{[%clk 0:00:41.4]} 22... Bxb2 {[%clk 0:02:23.7]} 23. Re3 {[%clk 0:00:40.1]}
23... Bf6 {[%clk 0:02:11.2]} 24. Reb3 {[%clk 0:00:35.8]} 24... Rb6 {[%clk
0:02:11.1]} 25. Kf1 {[%clk 0:00:27.6]} 25... Kg7 {[%clk 0:02:10.9]} 26. f3
{[%clk 0:00:26]} 26... Reb8 {[%clk 0:01:55.5]} 27. Ke2 {[%clk 0:00:26.3]} 27...
Rb4 {[%clk 0:01:49.3]} 28. Kd3 {[%clk 0:00:20.9]} 28... Rd4+ {[%clk 0:01:43.1]}
29. Ke3 {[%clk 0:00:21.1]} 29... Rb6 {[%clk 0:01:43.1]} 30. f4 {[%clk
0:00:08.9]} 30... Ra4 {[%clk 0:01:41.5]} 31. Rxb6 {[%clk 0:00:08.3]} 31... axb6
{[%clk 0:01:41.3]} 32. g4 {[%clk 0:00:07.8]} 32... Bd4+ {[%clk 0:01:40.2]} 33.
Ke2 {[%clk 0:00:06.6]} 33... Ra3 {[%clk 0:01:39.9]} 34. Bb3 {[%clk 0:00:05.9]}
34... c4 {[%clk 0:01:39.6]} 35. Bxc4 {[%clk 0:00:06]} 35... Re3+ {[%clk
0:01:37.6]} 36. Kd2 {[%clk 0:00:05.9]} 36... Rxe4 {[%clk 0:01:38.2]} 37. f5
{[%clk 0:00:05.2]} 37... Be3+ {[%clk 0:01:34.4]} 38. Kd3 {[%clk 0:00:05.5]}
38... Rd4+ {[%clk 0:01:35]} 39. Kc3 {[%clk 0:00:05.8]} 39... Rf4 {[%clk
0:01:32.5]} 40. Bd3 {[%clk 0:00:06.1]} 40... Bc5 {[%clk 0:01:28.6]} 41. Rh1
{[%clk 0:00:05.6]} 41... Rf3 {[%clk 0:01:27.8]} 42. Kd2 {[%clk 0:00:05.5]} 42...
Bd4 {[%clk 0:01:26.3]} 43. fxg6 {[%clk 0:00:05.6]} 43... hxg6 {[%clk 0:01:25.7]}
44. h4 {[%clk 0:00:05.2]} 44... Rg3 {[%clk 0:01:20.7]} 45. Be2 {[%clk
0:00:05.5]} 45... Bc3+ {[%clk 0:01:19.7]} 46. Kd1 {[%clk 0:00:05.1]} 46... d5
{[%clk 0:01:16]} 47. h5 {[%clk 0:00:05.5]} 47... gxh5 {[%clk 0:01:15.9]} 48.
gxh5 {[%clk 0:00:06.4]} 48... Kh6 {[%clk 0:01:16.4]} 49. Rf1 {[%clk 0:00:05.7]}
49... f6 {[%clk 0:01:16.6]} 50. Rh1 {[%clk 0:00:03]} 50... c5 {[%clk 0:01:13.8]}
51. Bf1 {[%clk 0:00:02.4]} 51... Be5 {[%clk 0:01:12.6]} 52. Ke2 {[%clk
0:00:02.7]} 52... Ra3 {[%clk 0:01:12]} 53. Bg2 {[%clk 0:00:03.2]} 53... Rxa2
{[%clk 0:01:11.7]} 54. Kd3 {[%clk 0:00:03]} 54... Ra3+ {[%clk 0:01:11.9]} 55.
Kd2 {[%clk 0:00:03.3]} 55... Bf4+ {[%clk 0:01:09.8]} 56. Ke2 {[%clk 0:00:03.2]}
56... Re3+ {[%clk 0:01:10.1]} 57. Kf2 {[%clk 0:00:01.6]} 57... d4 {[%clk
0:01:09.9]} 58. Ra1 {[%clk 0:00:01.2]} 58... Bg3+ {[%clk 0:01:05.5]} 59. Kf1
{[%clk 0:00:01.7]} 59... Kxh5 {[%clk 0:01:03.8]} 0-1

[Event "*** SCC Grand Prix: Titled Tuesday Blitz"]
[Site "Chess.com"]
[Date "2020.09.08"]
[Round "3"]
[White "Snowflake"]
[Black "BJthechessgod"]
[Result "1-0"]
[WhiteElo "2493"]
[BlackElo "2228"]
[TimeControl "180+1"]
[EndTime "10:29:52 PDT"]
[Termination "Snowflake won by resignation"]

1. Nf3 {[%clk 0:03:00.4]} 1... Nf6 {[%clk 0:02:56.3]} 2. c4 {[%clk 0:02:59.5]}
2... e6 {[%clk 0:02:48.5]} 3. b3 {[%clk 0:02:57.3]} 3... b6 {[%clk 0:02:46.9]}
4. g3 {[%clk 0:02:56]} 4... Bb7 {[%clk 0:02:47.8]} 5. Bg2 {[%clk 0:02:56.1]}
5... Be7 {[%clk 0:02:47.2]} 6. O-O {[%clk 0:02:56.1]} 6... O-O {[%clk
0:02:47.4]} 7. Bb2 {[%clk 0:02:56.7]} 7... d5 {[%clk 0:02:47.3]} 8. e3 {[%clk
0:02:54.9]} 8... dxc4 {[%clk 0:02:47.2]} 9. bxc4 {[%clk 0:02:54.5]} 9... Nbd7
{[%clk 0:02:47.2]} 10. Qe2 {[%clk 0:02:50]} 10... c5 {[%clk 0:02:46.9]} 11. d4
{[%clk 0:02:42.4]} 11... cxd4 {[%clk 0:02:46.5]} 12. exd4 {[%clk 0:02:43.3]}
12... Rc8 {[%clk 0:02:45.9]} 13. Nbd2 {[%clk 0:02:42.7]} 13... Re8 {[%clk
0:02:15.7]} 14. Rfe1 {[%clk 0:02:41.6]} 14... Bb4 {[%clk 0:02:11.4]} 15. Rac1
{[%clk 0:02:05.5]} 15... Ba6 {[%clk 0:01:24.7]} 16. a3 {[%clk 0:02:04.6]} 16...
Ba5 {[%clk 0:01:22.9]} 17. Red1 {[%clk 0:01:39.1]} 17... Nf8 {[%clk 0:01:13]}
18. Ne5 {[%clk 0:01:35.6]} 18... Qd6 {[%clk 0:00:58.7]} 19. Ne4 {[%clk
0:01:24.3]} 19... Nxe4 {[%clk 0:00:58.1]} 20. Bxe4 {[%clk 0:01:25.2]} 20... Ng6
{[%clk 0:00:56.5]} 21. Qh5 {[%clk 0:01:11]} 21... Qe7 {[%clk 0:00:35.2]} 22. d5
{[%clk 0:00:55.2]} 22... exd5 {[%clk 0:00:33.7]} 23. Rxd5 {[%clk 0:00:53]} 23...
Bb7 {[%clk 0:00:33.6]} 24. Rd7 {[%clk 0:00:49]} 24... Qxd7 {[%clk 0:00:17.7]}
25. Nxd7 {[%clk 0:00:49.9]} 25... Bxe4 {[%clk 0:00:15.8]} 26. Ne5 {[%clk
0:00:32.3]} 26... Nxe5 {[%clk 0:00:14.6]} 27. Bxe5 {[%clk 0:00:33.2]} 27... Bg6
{[%clk 0:00:14.5]} 28. Qg4 {[%clk 0:00:29.1]} 28... Rcd8 {[%clk 0:00:13.4]} 29.
Ba1 {[%clk 0:00:26]} 29... h5 {[%clk 0:00:12]} 30. Qf4 {[%clk 0:00:23.7]} 30...
Bd2 {[%clk 0:00:11.2]} 31. Qf3 {[%clk 0:00:11.8]} 31... Bxc1 {[%clk 0:00:10.9]}
32. Qc3 {[%clk 0:00:11.3]} 32... Rd1+ {[%clk 0:00:11]} 33. Kg2 {[%clk 0:00:11]}
33... f6 {[%clk 0:00:10.4]} 34. c5 {[%clk 0:00:11.1]} 34... bxc5 {[%clk
0:00:08.7]} 35. Qxc5 {[%clk 0:00:12]} 35... Be4+ {[%clk 0:00:08.6]} 36. Kh3
{[%clk 0:00:09.8]} 36... Kh7 {[%clk 0:00:07.2]} 37. Qxh5+ {[%clk 0:00:09.6]}
37... Kg8 {[%clk 0:00:07.3]} 38. Qxe8+ {[%clk 0:00:09.9]} 38... Kh7 {[%clk
0:00:07.5]} 39. Qh5+ {[%clk 0:00:10.6]} 39... Kg8 {[%clk 0:00:08.1]} 40. Qxd1
{[%clk 0:00:11.2]} 40... Bf5+ {[%clk 0:00:08.7]} 41. g4 {[%clk 0:00:11.2]} 41...
Bxa3 {[%clk 0:00:07.4]} 42. gxf5 {[%clk 0:00:10.4]} 42... Bf8 {[%clk 0:00:08.1]}
43. Qd5+ {[%clk 0:00:10.4]} 43... Kh8 {[%clk 0:00:08]} 44. Kg4 {[%clk
0:00:11.3]} 44... Kh7 {[%clk 0:00:08.3]} 45. Kh5 {[%clk 0:00:12.2]} 45... Kh8
{[%clk 0:00:08.3]} 46. Qf7 {[%clk 0:00:12.1]} 46... Kh7 {[%clk 0:00:07.8]} 47.
Bxf6 {[%clk 0:00:11.8]} 47... a5 {[%clk 0:00:05.6]} 48. Bxg7 {[%clk 0:00:10.3]}
48... Bxg7 {[%clk 0:00:05.6]} 49. f6 {[%clk 0:00:10.8]} 1-0